bitfinex/quotes_SOLUSD_20240622
["timestamp","ask_amount","ask_price","bid_price","bid_amount"]
[1719064035806,7.459,134.32,134.31,7.4453]
[1719064042405,7.4423,134.37,134.33,7.4442]
[1719064042406,7.459,134.37,134.33,7.4442]
[1719064042712,33.969,134.36,134.33,7.4442]
[1719064042901,13.969,134.36,134.33,7.4442]
[1719064046307,24.0669,134.38,134.33,7.4442]
[1719064046308,6.51,134.35,134.33,7.4442]
[1719064049694,6.51,134.35,134.32,7.4446]
[1719064051522,6.51,134.35,134.33,7.4443]
[1719064053623,6.51,134.35,134.31,7.4449]
[1719064053803,6.51,134.32,134.3,7.4456]
[1719064054007,6.51,134.31,134.29,7.4465]
[1719064054315,6.51,134.31,134.27,24.7281]
[1719064054316,6.51,134.31,134.3,7.446]
[1719064055605,6.51,134.31,134.29,7.4463]
[1719064057124,7.4434,134.35,134.3,7.446]
[1719064057314,6.51,134.31,134.3,7.446]
[1719064060229,20.34,134.34,134.3,7.446]
[1719064060415,6.51,134.31,134.3,7.446]
[1719064061032,6.51,134.32,134.31,7.4454]
[1719064062730,6.51,134.32,134.3,7.4457]
[1719064063232,20.0,134.35,134.31,7.4454]
[1719064063535,6.51,134.33,134.31,7.4454]
[1719064072040,20.0,134.35,134.29,25.1262]
[1719064072343,6.51,134.34,134.29,25.1262]
[1719064072521,6.51,134.34,134.29,40.8391]
[1719064072720,6.51,134.34,134.33,7.4439]
[1719064073727,6.51,134.34,134.32,7.4446]
[1719064080043,6.51,134.34,134.33,7.4443]
[1719064080650,6.51,134.35,134.33,7.4443]
[1719064086547,6.51,134.35,134.32,7.4446]
[1719064086748,6.51,134.34,134.32,7.4446]
[1719064087056,6.51,134.34,134.33,7.4443]
[1719064087345,20.0,134.36,134.33,7.4443]
[1719064087533,6.51,134.34,134.33,7.4443]
[1719064088147,6.51,134.35,134.33,7.4443]
[1719064089250,20.0,134.36,134.33,7.4443]
[1719064089442,6.51,134.35,134.33,7.4443]
[1719064090349,7.461,134.37,134.31,6.4304]
[1719064090553,6.51,134.39,134.35,7.4428]
[1719064090733,20.0,134.38,134.36,7.4425]
[1719064091437,26.51,134.38,134.35,7.443]
[1719064092027,6.51,134.38,134.36,7.4426]
[1719064092251,7.461,134.41,134.37,7.442]
[1719064092547,33.971,134.4,134.39,7.441]
[1719064093127,13.971,134.4,134.39,7.441]
[1719064093338,7.461,134.42,134.38,7.4413]
[1719064093532,5.81697695,134.43,134.38,7.4413]
[1719064093533,6.51,134.4,134.38,7.4413]
[1719064093752,13.971,134.4,134.38,7.4413]
[1719064093952,7.461,134.4,134.38,7.4413]
[1719064094149,7.461,134.4,134.39,7.441]
[1719064094349,4.8367,134.45,134.36,6.51]
[1719064094557,6.51,134.41,134.39,7.4408]
[1719064094930,6.51,134.41,134.38,7.4413]
[1719064095546,6.51,134.4,134.37,7.442]
[1719064098142,6.51,134.4,134.38,7.4413]
[1719064100235,14.9004,134.42,134.37,7.4419]
[1719064100556,6.51,134.38,134.37,7.4419]
[1719064102063,6.51,134.38,134.33,6.51]
[1719064102271,6.51,134.37,134.36,7.4424]
[1719064115686,27.7801,134.41,134.36,7.4424]
[1719064115858,6.51,134.37,134.36,7.4424]
[1719064116055,20.34,134.41,134.34,18.6082]
[1719064116258,6.51,134.39,134.34,25.1182]
[1719064116557,6.51,134.39,134.38,7.4413]
[1719064116890,26.51,134.39,134.38,7.4413]
[1719064117181,6.51,134.4,134.38,7.4413]
[1719064120167,7.439,134.43,134.38,7.4413]
[1719064120366,6.51,134.41,134.38,7.4413]
[1719064121368,20.0,134.42,134.38,7.4413]
[1719064121551,6.51,134.41,134.38,7.4413]
[1719064122171,6.51,134.41,134.39,7.4409]
[1719064122853,6.51,134.41,134.36,6.51]
[1719064123172,6.51,134.4,134.37,7.4417]
[1719064123978,6.51,134.39,134.37,7.4417]
[1719064124179,20.0,134.42,134.37,7.4417]
[1719064124358,20.0,134.42,134.38,7.4414]
[1719064124560,6.51,134.4,134.38,7.4414]
[1719064125276,6.51,134.4,134.39,7.441]
[1719064125473,20.0,134.42,134.38,7.4412]
[1719064125671,6.51,134.4,134.38,7.4412]
[1719064129781,6.51,134.4,134.37,7.4419]
[1719064129972,6.51,134.38,134.36,7.4425]
[1719064130289,6.51,134.37,134.35,7.4432]
[1719064132676,6.51,134.37,134.34,7.4436]
[1719064133079,6.51,134.37,134.35,7.4432]
[1719064136090,7.4406,134.4,134.35,7.4432]
[1719064136278,6.51,134.37,134.35,7.4432]
[1719064136877,0.17,134.39,134.35,7.4432]
[1719064137079,6.51,134.37,134.35,7.4432]
[1719064138174,6.51,134.37,134.36,7.4426]
[1719064138575,6.51,134.38,134.36,7.4426]
[1719064139310,6.51,134.39,134.37,7.4421]
[1719064141216,6.51,134.39,134.36,7.4424]
[1719064142424,6.51,134.38,134.35,7.4431]
[1719064145216,6.51,134.38,134.36,7.4426]
[1719064151117,7.44,134.41,134.36,7.4426]
[1719064151414,6.51,134.39,134.36,7.4426]
[1719064159905,6.51,134.38,134.36,7.4426]
[1719064162229,6.51,134.39,134.36,7.4426]
[1719064162734,6.51,134.38,134.36,7.4426]
[1719064166637,6.51,134.38,134.35,7.443]
[1719064166933,6.51,134.37,134.35,7.443]
[1719064168032,26.51,134.4,134.32,22.2053]
[1719064168218,6.51,134.34,134.32,22.2053]
[1719064168727,6.51,134.34,134.32,23.1574]
[1719064168933,6.51,134.34,134.32,7.4445]
[1719064170128,6.51,134.34,134.33,7.4443]
[1719064174732,6.51,134.35,134.33,7.4443]
[1719064175439,6.51,134.35,134.32,7.4447]
[1719064176531,6.51,134.34,134.32,7.4447]
[1719064182422,6.51,134.34,134.31,7.4452]
[1719064182621,6.51,134.35,134.33,7.4443]
[1719064183740,6.51,134.36,134.33,7.4443]
[1719064185050,6.51,134.36,134.32,7.4447]
[1719064189549,7.4421,134.37,134.32,7.4447]
[1719064189756,26.51,134.36,134.32,7.4447]
[1719064190443,33.9527,134.36,134.31,7.4452]
[1719064190653,33.9527,134.36,134.31,13.9552]
[1719064190949,6.51,134.35,134.31,7.4452]
[1719064193140,20.0,134.36,134.32,7.4449]
[1719064193337,6.51,134.35,134.32,7.4449]
[1719064195055,6.51,134.35,134.33,7.4443]
[1719064197558,26.51,134.36,134.33,7.4443]
[1719064202963,26.51,134.36,134.32,7.4448]
[1719064203165,26.51,134.36,134.33,7.4443]
[1719064205267,20.0,134.36,134.29,22.1366]
[1719064205475,6.51,134.33,134.3,7.4456]
[1719064205642,7.4432,134.35,134.3,7.4456]
[1719064205848,6.51,134.33,134.3,7.4456]
[1719064206565,6.51,134.33,134.3,7.4459]
[1719064207269,6.51,134.32,134.3,7.4459]
[1719064207469,6.51,134.31,134.3,7.4459]
[1719064210258,6.51,134.31,134.29,7.4463]
[1719064214971,6.51,134.31,134.3,7.446]
[1719064218087,6.51,134.31,134.25,15.3416]
[1719064218297,20.0,134.3,134.28,7.4471]
[1719064218453,6.51,134.29,134.27,7.4474]
[1719064218654,6.51,134.28,134.27,7.4474]
[1719064221972,13.30937282,134.29,134.28,7.4471]
[1719064222172,20.0,134.3,134.29,7.4465]
[1719064222173,26.51,134.3,134.29,7.4465]
[1719064222357,26.51,134.3,134.25,6.51]
[1719064222358,39.82038309,134.3,134.28,7.4469]
[1719064222560,13.31038309,134.29,134.28,7.4469]
[1719064223603,13.31045855,134.29,134.28,7.4469]
[1719064224298,20.0,134.3,134.28,7.4469]
[1719064224586,33.31038446,134.31,134.28,7.4469]
[1719064224762,20.0,134.31,134.28,7.4469]
[1719064225284,20.0,134.31,134.27,7.4475]
[1719064225489,33.31038446,134.31,134.27,7.4475]
[1719064226189,20.0,134.31,134.27,7.4475]
[1719064226382,13.31046363,134.3,134.27,7.4475]
[1719064226565,33.31046363,134.31,134.27,7.4475]
[1719064227493,33.31046363,134.31,134.28,7.447]
[1719064227665,20.0,134.31,134.28,7.447]
[1719064227975,20.0,134.31,134.27,7.4475]
[1719064228287,6.51,134.3,134.27,7.4475]
[1719064228588,19.82046363,134.3,134.27,7.4475]
[1719064228897,19.82096291,134.3,134.27,7.4475]
[1719064230868,6.51,134.29,134.26,7.4479]
[1719064231489,6.51,134.29,134.27,7.4476]
[1719064235301,6.51,134.29,134.28,7.4471]
[1719064235477,19.82087126,134.3,134.28,7.4471]
[1719064236685,19.8209754,134.3,134.28,7.4471]
[1719064237374,13.3109754,134.3,134.29,7.4465]
[1719064237573,6.51,134.32,134.27,7.4475]
[1719064237771,6.51,134.32,134.26,12.7839]
[1719064237772,6.51,134.31,134.26,12.7839]
[1719064238687,13.3109754,134.33,134.28,7.4467]
[1719064238881,6.51,134.31,134.28,7.4467]
[1719064239281,6.51,134.31,134.29,7.4465]
[1719064241392,19.82388393,134.31,134.28,7.4469]
[1719064241802,19.82337799,134.31,134.28,7.4469]
[1719064241982,19.82337799,134.31,134.29,7.4465]
[1719064244405,6.51,134.31,134.29,7.4465]
[1719064244585,19.82348258,134.31,134.28,7.4468]
[1719064246005,6.51,134.31,134.28,7.4468]
[1719064248904,6.51,134.31,134.29,7.4465]
[1719064252382,6.51,134.31,134.27,7.4473]
[1719064252583,6.51,134.31,134.26,6.2739]
[1719064252584,6.51,134.29,134.26,7.448]
[1719064252783,20.0,134.32,134.25,16.3474]
[1719064252784,6.51,134.28,134.25,16.3474]
[1719064252986,6.51,134.28,134.23,18.6245]
[1719064253194,6.51,134.28,134.25,7.4484]
[1719064254009,6.51,134.28,134.26,7.4482]
[1719064254807,6.51,134.28,134.27,7.4476]
[1719064255188,6.51,134.28,134.26,7.448]
[1719064255611,6.51,134.28,134.26,7.4478]
[1719064256301,6.51,134.28,134.26,7.4482]
[1719064257891,7.4456,134.31,134.26,7.4482]
[1719064258107,6.51,134.28,134.26,7.4482]
[1719064259902,20.0,134.32,134.25,6.51]
[1719064260106,4.8367,134.33,134.28,7.4469]
[1719064260107,6.51,134.3,134.28,7.4469]
[1719064260296,6.51,134.3,134.27,7.4474]
[1719064260812,6.51,134.29,134.27,7.4474]
[1719064261012,7.4449,134.32,134.27,7.4474]
[1719064261188,6.51,134.3,134.27,7.4474]
[1719064261386,6.51,134.28,134.24,6.04298087]
[1719064261615,6.51,134.27,134.24,6.04298087]
[1719064261800,6.51,134.28,134.24,6.04298087]
[1719064263400,0.17,134.31,134.22,22.2394]
[1719064263401,6.51,134.26,134.22,22.2394]
[1719064263600,6.51,134.26,134.24,7.4493]
[1719064263990,6.51,134.26,134.22,22.2394]
[1719064264203,7.631,134.31,134.23,7.4497]
[1719064264204,7.4472,134.28,134.23,7.4497]
[1719064264399,6.51,134.24,134.22,7.4503]
[1719064264702,7.4496,134.24,134.18,7.4522]
[1719064264901,6.51,134.22,134.18,7.4522]
[1719064265104,6.51,134.22,134.19,7.452]
[1719064265510,6.51,134.22,134.18,7.4525]
[1719064265696,6.51,134.22,134.16,15.7898]
[1719064265897,6.51,134.21,134.16,22.2998]
[1719064266715,6.51,134.21,134.18,7.4525]
[1719064268419,6.51,134.22,134.18,7.4525]
[1719064269218,20.0,134.23,134.18,7.4525]
[1719064269426,26.51,134.23,134.19,7.4519]
[1719064269610,6.51,134.23,134.19,7.4519]
[1719064269811,20.0,134.24,134.19,7.4519]
[1719064270016,6.51,134.23,134.19,7.4519]
[1719064271318,26.51,134.24,134.2,7.4514]
[1719064271706,6.51,134.23,134.19,7.452]
[1719064272731,20.0,134.24,134.19,7.452]
[1719064273032,6.51,134.23,134.19,7.452]
[1719064275710,6.51,134.22,134.19,7.452]
[1719064278930,20.0,134.24,134.19,7.452]
[1719064278931,27.4493,134.24,134.19,7.452]
[1719064279121,6.51,134.22,134.19,7.452]
[1719064279322,6.51,134.21,134.19,7.452]
[1719064279535,6.51,134.22,134.19,7.452]
[1719064280232,20.0,134.24,134.2,7.4513]
[1719064280420,6.51,134.23,134.2,7.4513]
[1719064282236,20.0,134.24,134.2,7.4513]
[1719064284742,20.0,134.24,134.19,7.4519]
[1719064288865,27.4494,134.24,134.16,34.4241]
[1719064289144,20.0,134.24,134.18,7.4526]
[1719064289326,7.45,134.23,134.17,13.9629]
[1719064289720,7.45,134.23,134.18,7.4525]
[1719064289954,6.51,134.22,134.19,7.4519]
[1719064291651,6.51,134.22,134.17,6.51]
[1719064291844,6.51,134.22,134.18,7.4524]
[1719064292351,6.51,134.2,134.16,23.2432]
[1719064292555,6.51,134.18,134.16,7.4534]
[1719064293063,6.51,134.18,134.15,7.4541]
[1719064293638,6.51,134.17,134.14,7.4547]
[1719064294493,7.4516,134.2,134.15,7.4542]
[1719064294748,6.51,134.17,134.14,7.4547]
[1719064295344,7.4516,134.2,134.14,7.4547]
[1719064295646,6.51,134.17,134.14,7.4547]
[1719064296345,7.4516,134.2,134.15,7.4542]
[1719064296650,6.51,134.17,134.15,7.4542]
[1719064296849,6.51,134.18,134.15,7.4542]
[1719064297545,6.51,134.18,134.14,7.4548]
[1719064297745,6.51,134.17,134.14,7.4548]
[1719064298545,6.51,134.17,134.15,7.4542]
[1719064298753,6.51,134.18,134.15,7.4542]
[1719064298955,7.6211,134.21,134.15,7.4542]
[1719064299154,6.51,134.18,134.15,7.4542]
[1719064299456,6.51,134.17,134.14,7.4547]
[1719064300554,6.51,134.17,134.13,15.9848]
[1719064300746,7.6213,134.21,134.15,7.4539]
[1719064300955,6.51,134.19,134.15,7.4539]
[1719064301153,6.51,134.18,134.15,7.4539]
[1719064301658,6.51,134.18,134.15,7.4541]
[1719064302353,6.51,134.18,134.14,7.4547]
[1719064302765,20.0,134.2,134.15,7.4541]
[1719064302935,6.51,134.18,134.16,7.4536]
[1719064303354,6.51,134.19,134.16,7.4536]
[1719064303761,6.51,134.19,134.15,7.4543]
[1719064306062,6.51,134.18,134.15,7.4543]
[1719064306441,13.29228027,134.2,134.14,18.637]
[1719064306642,13.29228027,134.2,134.16,6.51]
[1719064306856,26.51,134.21,134.16,6.51]
[1719064307645,26.51,134.21,134.17,7.453]
[1719064307845,20.0,134.21,134.17,13.963]
[1719064308365,19.80536659,134.22,134.18,7.4525]
[1719064308667,13.29536659,134.22,134.18,7.4525]
[1719064308870,6.51,134.22,134.18,7.4525]
[1719064309493,19.80530126,134.22,134.18,7.4525]
[1719064310041,6.51,134.22,134.18,7.4525]
[1719064310370,7.45,134.23,134.18,7.4525]
[1719064310664,26.51,134.22,134.18,7.4525]
[1719064311037,20.0,134.22,134.17,13.963]
[1719064311263,26.51,134.22,134.17,13.963]
[1719064312640,20.0,134.22,134.17,13.963]
[1719064312838,26.51,134.22,134.17,13.963]
[1719064314262,26.51,134.22,134.18,7.4525]
[1719064316162,20.0,134.22,134.18,7.4525]
[1719064316367,20.0,134.23,134.19,7.452]
[1719064316549,6.51,134.22,134.19,7.452]
[1719064317054,20.0,134.23,134.19,7.452]
[1719064317255,6.51,134.22,134.19,7.452]
[1719064318057,6.51,134.22,134.18,7.4525]
[1719064320282,6.51,134.22,134.19,7.452]
[1719064320565,20.0,134.23,134.19,7.452]
[1719064320777,26.51,134.23,134.19,7.452]
[1719064321767,6.51,134.22,134.19,7.452]
[1719064324676,20.0,134.23,134.18,7.4525]
[1719064324888,6.51,134.2,134.18,7.4525]
[1719064325479,6.51,134.19,134.17,23.0918]
[1719064325678,6.51,134.19,134.16,13.7707]
[1719064325985,7.4504,134.22,134.16,7.4535]
[1719064325986,6.51,134.18,134.16,7.4535]
[1719064326773,6.51,134.18,134.15,7.4541]
[1719064326965,6.51,134.17,134.15,7.4541]
[1719064327871,6.51,134.17,134.14,7.4546]
[1719064328785,6.51,134.16,134.14,7.4546]
[1719064329364,6.51,134.16,134.15,7.4543]
[1719064329566,6.51,134.16,134.14,7.4548]
[1719064330086,6.51,134.16,134.15,7.4543]
[1719064331778,23.54,134.21,134.16,7.4536]
[1719064331970,6.51,134.18,134.16,7.4536]
[1719064333458,6.51,134.18,134.15,7.4541]
[1719064334761,23.54,134.21,134.14,7.4546]
[1719064334762,6.51,134.17,134.14,7.4546]
[1719064336359,7.4516,134.2,134.15,7.4542]
[1719064336564,6.51,134.18,134.15,7.4542]
[1719064337372,6.51,134.18,134.14,7.4546]
[1719064337580,6.51,134.17,134.14,7.4546]
[1719064340989,7.4512,134.21,134.14,6.51]
[1719064341191,20.0,134.2,134.16,16.332]
[1719064341989,20.0,134.2,134.16,23.7855]
[1719064342187,26.51,134.2,134.16,16.332]
[1719064342568,26.51,134.2,134.16,23.7856]
[1719064344502,6.51,134.18,134.14,7.4545]
[1719064344786,27.4516,134.2,134.14,7.4545]
[1719064344977,27.4516,134.2,134.15,7.4541]
[1719064344978,6.51,134.18,134.15,7.4541]
[1719064345770,6.51,134.18,134.14,7.4546]
[1719064346388,6.51,134.18,134.13,12.5744]
[1719064346389,6.51,134.16,134.13,13.5196]
[1719064346565,6.51,134.16,134.12,24.6505703]
[1719064347666,6.51,134.16,134.13,7.4553]
[1719064354102,6.51,134.16,134.14,7.4546]
[1719064354278,6.51,134.17,134.14,7.4546]
[1719064354885,20.0,134.2,134.14,6.51]
[1719064355088,0.17,134.22,134.15,6.51]
[1719064355295,0.17,134.22,134.17,7.4531]
[1719064355296,6.51,134.2,134.17,7.4531]
[1719064355476,20.0,134.19,134.17,7.4531]
[1719064355888,20.0,134.19,134.16,7.4535]
[1719064356894,26.51,134.19,134.16,7.4535]
[1719064358701,26.51,134.19,134.15,7.4541]
[1719064359879,6.51,134.18,134.15,7.4541]
[1719064360279,6.51,134.17,134.13,7.4552]
[1719064361780,6.51,134.17,134.14,7.4547]
[1719064363492,6.51,134.17,134.13,7.4553]
[1719064364318,6.51,134.17,134.13,7.455]
[1719064364608,6.51,134.16,134.12,8.3181703]
[1719064364816,6.51,134.16,134.13,7.4553]
[1719064366406,6.51,134.16,134.14,7.4547]
[1719064366784,6.51,134.17,134.14,7.4547]
[1719064369214,6.51,134.17,134.13,7.4553]
[1719064369886,6.51,134.16,134.13,7.4553]
[1719064371396,6.51,134.17,134.13,7.4553]
[1719064372109,6.51,134.17,134.12,0.8627703]
[1719064372311,6.51,134.18,134.15,7.4539]
[1719064374012,6.51,134.18,134.14,7.4546]
[1719064374215,6.51,134.18,134.15,7.4543]
[1719064377033,6.51,134.18,134.14,7.4547]
[1719064377610,6.51,134.18,134.13,7.4552]
[1719064377800,6.51,134.17,134.13,7.4552]
[1719064379115,42.6968,134.19,134.13,7.4552]
[1719064379319,6.51,134.17,134.13,7.4552]
[1719064380215,6.51,134.17,134.14,7.4548]
[1719064380413,42.6968,134.19,134.14,7.4548]
[1719064380718,6.51,134.17,134.14,7.4548]
[1719064383012,6.51,134.18,134.15,7.4541]
[1719064384827,6.51,134.18,134.14,7.4546]
[1719064386905,19.80161742,134.18,134.14,7.4546]
[1719064387107,6.51,134.18,134.14,7.4546]
[1719064387505,35.2446,134.19,134.14,7.4546]
[1719064387800,6.51,134.18,134.14,7.4546]
[1719064391626,6.51,134.17,134.14,7.4546]
[1719064392512,6.51,134.18,134.15,7.4541]
[1719064393733,6.51,134.17,134.12,0.8627703]
[1719064393911,6.51,134.17,134.13,7.4552]
[1719064395727,6.51,134.17,134.12,0.8627703]
[1719064395728,21.2621,134.16,134.12,0.8627703]
[1719064396034,7.4554,134.13,134.12,0.8627703]
[1719064396243,14.1354,134.13,134.12,0.8627703]
[1719064396415,34.3054,134.13,134.12,0.8627703]
[1719064397425,20.0,134.13,134.12,0.8627703]
[1719064397627,26.51,134.13,134.12,0.8627703]
[1719064401837,20.0,134.13,134.12,0.8627703]
[1719064402234,26.51,134.13,134.12,0.8627703]
[1719064402433,20.0,134.13,134.12,0.8627703]
[1719064402632,26.51,134.13,134.12,0.8627703]
[1719064404246,7.4571,134.18,134.13,7.4552]
[1719064404451,26.51,134.17,134.14,7.4547]
[1719064404647,20.0,134.17,134.14,7.4547]
[1719064405645,26.51,134.17,134.14,7.4547]
[1719064405847,6.51,134.17,134.14,7.4547]
[1719064406544,6.51,134.16,134.13,7.4553]
[1719064409851,27.4527,134.18,134.12,8.3184703]
[1719064409852,6.51,134.15,134.12,8.3184703]
[1719064410037,6.51,134.16,134.12,8.3184703]
[1719064410648,6.51,134.16,134.13,7.4554]
[1719064411519,6.51,134.16,134.12,0.8627703]
[1719064411520,6.51,134.16,134.12,8.3184703]
[1719064411725,6.51,134.15,134.12,8.3184703]
[1719064412337,6.51,134.15,134.13,7.4554]
[1719064414041,6.51,134.15,134.12,0.8627703]
[1719064414241,6.51,134.14,134.12,0.8627703]
[1719064415148,6.51,134.14,134.12,8.3183703]
[1719064415350,0.17,134.16,134.13,7.4554]
[1719064415351,6.51,134.15,134.13,7.4554]
[1719064415938,6.51,134.15,134.12,8.3184703]
[1719064416351,6.51,134.15,134.13,7.4553]
[1719064417453,6.51,134.15,134.12,8.3184703]
[1719064418556,27.4528,134.18,134.13,7.4553]
[1719064418853,6.51,134.15,134.13,7.4553]
[1719064422038,6.51,134.15,134.12,8.3184703]
[1719064422950,6.51,134.14,134.12,8.3184703]
[1719064423138,6.51,134.14,134.12,0.8627703]
[1719064424153,6.51,134.14,134.12,8.3187703]
[1719064426473,6.51,134.14,134.12,0.8627703]
[1719064426849,6.51,134.13,134.12,0.8627703]
[1719064428242,6.51,134.13,134.12,8.3187703]
[1719064428435,6.51,134.14,134.12,8.3187703]
[1719064432542,6.51,134.15,134.12,8.3187703]
[1719064432738,0.17,134.17,134.13,7.455]
[1719064432934,6.51,134.16,134.13,7.455]
[1719064433138,20.0,134.15,134.13,7.455]
[1719064433747,20.0,134.15,134.12,8.3184703]
[1719064434258,6.51,134.16,134.12,8.3184703]
[1719064434457,20.0,134.15,134.12,8.3184703]
[1719064436441,20.0,134.15,134.12,30.5898703]
[1719064436842,20.0,134.15,134.12,23.1341703]
[1719064437082,26.084,134.2,134.12,30.5895703]
[1719064437251,6.51,134.16,134.12,30.5895703]
[1719064437645,7.453,134.18,134.12,30.5895703]
[1719064437846,6.51,134.16,134.12,30.5895703]
[1719064441156,6.51,134.16,134.13,7.4554]
[1719064442169,6.51,134.16,134.12,23.1341703]
[1719064442170,20.0,134.17,134.12,23.1341703]
[1719064442342,6.51,134.16,134.12,30.5899703]
[1719064447172,6.51,134.16,134.14,7.4547]
[1719064447468,13.32299492,134.22,134.14,7.4547]
[1719064447469,6.51,134.2,134.16,7.4537]
[1719064447774,20.0,134.19,134.16,7.4537]
[1719064448495,26.51,134.19,134.16,7.4537]
[1719064448692,26.51,134.19,134.17,7.4532]
[1719064449594,20.0,134.19,134.16,7.4535]
[1719064449952,26.51,134.19,134.16,7.4535]
[1719064453280,26.51,134.19,134.15,7.4541]
[1719064459576,6.51,134.17,134.13,7.4549]
[1719064459773,6.51,134.17,134.14,7.4547]
[1719064463686,26.51,134.19,134.12,23.1341703]
[1719064463999,6.51,134.16,134.13,7.455]
[1719064466502,6.51,134.16,134.12,24.2262703]
[1719064466893,6.51,134.16,134.13,7.4553]
[1719064470380,13.28692715,134.17,134.13,7.4553]
[1719064470580,20.90972715,134.18,134.13,7.4553]
[1719064470800,6.51,134.16,134.13,7.4553]
[1719064471197,19.79692715,134.16,134.13,7.4553]
[1719064472205,13.28692715,134.16,134.14,7.4547]
[1719064472404,33.28692715,134.17,134.14,7.4547]
[1719064472997,13.28692715,134.16,134.14,7.4547]
[1719064473297,13.28693973,134.16,134.14,7.4547]
[1719064473600,13.28693973,134.17,134.14,6.51]
[1719064473912,6.51,134.19,134.14,6.51]
[1719064474498,6.51,134.2,134.15,6.51]
[1719064474695,13.29006045,134.22,134.16,21.3265]
[1719064474886,6.51,134.25,134.21,7.451]
[1719064475088,6.51,134.26,134.22,7.4504]
[1719064476197,13.29006045,134.27,134.23,7.4495]
[1719064476391,6.51,134.26,134.21,7.4506]
[1719064476599,6.51,134.26,134.22,7.4504]
[1719064476814,27.27727794,134.27,134.22,7.4504]
[1719064476993,13.29627794,134.26,134.22,7.4504]
[1719064477192,13.981,134.27,134.22,7.4504]
[1719064477892,13.981,134.27,134.23,7.4498]
[1719064478518,27.27727794,134.27,134.23,7.4498]
[1719064478814,13.29627794,134.26,134.23,22.6982]
[1719064479115,6.51,134.27,134.23,22.6982]
[1719064479691,19.80827477,134.27,134.23,22.6982]
[1719064480108,6.51,134.27,134.23,22.6982]
[1719064480312,6.51,134.25,134.22,6.078]
[1719064480610,7.4478,134.27,134.22,7.4503]
[1719064480792,6.51,134.25,134.21,7.4508]
[1719064481192,19.80757556,134.25,134.21,7.4508]
[1719064481411,6.51,134.25,134.21,7.4508]
[1719064481607,6.51,134.25,134.22,7.4504]
[1719064482003,6.51,134.25,134.21,7.4508]
[1719064482202,6.51,134.24,134.2,22.6998]
[1719064482390,6.51,134.23,134.2,7.4515]
[1719064484002,6.51,134.23,134.19,13.5299]
[1719064484192,6.51,134.22,134.18,7.4524]
[1719064484397,6.51,134.21,134.18,7.4524]
[1719064485720,6.51,134.19,134.15,7.4541]
[1719064486016,6.51,134.17,134.15,7.4541]
[1719064487131,6.51,134.18,134.16,7.4537]
[1719064490021,19.80139676,134.19,134.16,7.4537]
[1719064490423,19.80139676,134.19,134.15,7.4541]
[1719064490627,6.51,134.19,134.15,7.4541]